Cogmind - Beta 9.1 @@@ ROGUE MODE // 2019.11.05 @ 04:09:37 Player: MrPainting Result: Self-destructed Performance ------------- Evolutions (1) 500 Regions Visited (3) 600 Robots Destroyed (4) 20 Value Destroyed (119) 119 Prototype IDs (0) 0 Alien Tech Used (0) 0 Bonus (0) 0 TOTAL SCORE: 1239 Bonus ------- None Cogmind --------- Core Integrity 8/400 Matter 300/300 Energy 100/100 System Corruption 0% Temperature Cool (0) Location -9/Materials Parts ------- Power (1) Propulsion (4) Utility (2) Weapon (2) Great Maul Inventory (4) Grenade Launcher Mini Grenade Launcher Peak State ------------ Power (None) Propulsion Aluminum Leg Aluminum Leg Utility Compact Matter Pod High-powered Tractor Beam Weapon Light Assault Rifle Light Assault Rifle Inventory Mini Grenade Launcher Great Maul Great Maul [Rating: 9] Favorites ----------- Power None Propulsion Aluminum Leg Leg Aluminum Leg Utility High-powered Tractor Beam Device High-powered Tractor Beam Storage Compact Matter Pod Weapon Light Assault Rifle Energy Gun EM Pulse Gun Ballistic Gun Light Assault Rifle Impact Weapon Great Maul Build | -11 -10 -10 -9 ------- Run | Scr Mat Min Mat Slots Evolved 2 | . . . 2 Power . | . . . . Propulsion 2 | . . . 2 Utility . | . . . . Weapon . | . . . . Parts Attached 9 | 4 . . 5 Power . | . . . . Engine . | . . . . Core . | . . . . Reactor . | . . . . Propulsion 2 | 2 . . . Treads . | . . . . Leg 2 | 2 . . . Wheel . | . . . . Hover . | . . . . Flight . | . . . . Utility 2 | . . . 2 Device 1 | . . . 1 Storage 1 | . . . 1 Processor . | . . . . Hackware . | . . . . Protection . | . . . . Artifact . | . . . . Weapon 5 | 2 . . 3 Energy Gun 1 | 1 . . . Energy Cannon . | . . . . Ballistic Gun 3 | 1 . . 2 Ballistic Cannon . | . . . . Launcher . | . . . . Special Weapon . | . . . . Impact Weapon 1 | . . . 1 Slashing Weapon . | . . . . Piercing Weapon . | . . . . Special Melee Weapon . | . . . . Unidentified Prototypes . | . . . . Parts Lost 6 | . . . 6 Power . | . . . . Propulsion 2 | . . . 2 Utility 2 | . . . 2 Weapon 2 | . . . 2 Highest Loss Streak 6 | . . . 6 Average Slot Usage (%) 51 | . 57 57 44 Leg 23 | . 28 28 16 Device 2 | . . . 5 Storage 1 | . . . 3 Energy Gun 8 | . 14 14 . Ballistic Gun 13 | . 14 14 13 Impact Weapon 1 | . . . 2 Naked Turns . | . . . . Heaviest Build 4 | 3 3 3 4 Greatest Support 20 | 20 20 20 10 Greatest Overweight (x) . | . . . . Average Overweight (x) . | . . . . Largest Inventory Capacity 4 | 4 4 4 4 Average Capacity 4 | 4 4 4 4 Most Carried 4 | 1 2 3 4 Average Carried 1 | . . 2 2 Final Capacity 4 | 4 4 4 4 Final Carried 3 | . 2 3 2 Class Distribution -------------------- 100% | Mutant Dominant Class ---------------- Mutant | -10/Materials Mutant | -10/Mines Mutant | -9/Materials Resources | -11 -10 -10 -9 ----------- Run | Scr Mat Min Mat Matter Collected 299 | 243 . . 56 Remotely 56 | . . . 56 Salvage Created 231 | 100 . . 131 Parts 10 | 4 . . 6 Haulers Intercepted . | . . . . Recyclers Shooed 1 | 1 . . . Parts Field Recycled . | . . . . Retrieved Matter . | . . . . Parts Self-Destructed . | . . . . Prevented . | . . . . Kills | -11 -10 -10 -9 ------- Run | Scr Mat Min Mat Combat Hostiles Destroyed 3 | . . . 3 Melee 1 | . . . 1 Guns 2 | . . . 2 Classes Destroyed 3 | 1 . . 2 Recycler 1 | 1 . . . Grunt 2 | . . . 2 Sentry 1 | . . . 1 Best Kill Streak 3 | 1 . . 3 Combat Bots Only 3 | . . . 3 Max Kills in Single Turn 1 | 1 . . 1 Gunslinging . | . . . . Exploded . | . . . . Melee 1 | . . . 1 Uniques/NPCs Destroyed . | . . . . Combat | -11 -10 -10 -9 -------- Run | Scr Mat Min Mat Damage Taken 955 | . . 130 825 Core 436 | . . 44 392 Absorbed by Shields . | . . . . Core Remaining (%) 91 | 100 . 82 . Volleys Fired 14 | 3 . . 11 Largest 2 | 2 . . 2 Hottest 60 | 60 . . 40 Shots Fired 26 | 6 . . 20 Gun 26 | 6 . . 20 Cannon . | . . . . Launcher . | . . . . Special . | . . . . Kinetic 23 | 3 . . 20 Thermal . | . . . . Explosive . | . . . . Electromagnetic 3 | 3 . . . Robot Hit Streak 14 | 5 . . 14 Robot Miss Streak 1 | . . . 1 Penetration Max . | . . . . Secondary Targets 2 | . . . 2 Max Gunslinging Chain 1 | . . . 1 Shots Hit Robots 35 | 5 . . 30 Core Hits 9 | 2 . . 7 Critical Hits . | . . . . Critical Kills . | . . . . Critical Parts Destroyed . | . . . . Melee Attacks 13 | . . . 13 Impact 13 | . . . 13 Slashing . | . . . . Piercing . | . . . . Sneak Attacks . | . . . . Combat Hostiles . | . . . . Follow-up Attacks . | . . . . Damage Inflicted 429 | 48 . . 381 Guns 201 | 48 . . 153 Cannons . | . . . . Explosions . | . . . . Melee 228 | . . . 228 Ramming . | . . . . Kinetic 177 | 24 . . 153 Thermal . | . . . . Explosive . | . . . . Electromagnetic 24 | 24 . . . Impact 228 | . . . 228 Slashing . | . . . . Piercing . | . . . . Highest Corruption . | . . . . Average Corruption . | . . . . Corruption Purged . | . . . . Overload Shots . | . . . . Overflow Damage . | . . . . Projectiles . | . . . . Explosions . | . . . . Melee . | . . . . Knockbacks . | . . . . Impact . | . . . . Kinetic . | . . . . Secondary . | . . . . Self-Inflicted Damage . | . . . . Shots . | . . . . Rammed . | . . . . Targets Rammed . | . . . . Kicked . | . . . . Crushed . | . . . . Highest Temperature 10 | 10 . . 1 Average Temperature 5 | 7 . . 1 Received Heat Transfer 270 | . . . 270 Siege Activations . | . . . . Robots Corrupted . | . . . . Combat Hostiles . | . . . . Parts Fried . | . . . . Impact Corruptions . | . . . . Robots Melted . | . . . . Combat Hostiles . | . . . . Parts Melted . | . . . . Heat Transferred . | . . . . Parts Sabotaged . | . . . . Parts Stolen . | . . . . Parts Stripped . | . . . . Power Chain Reactions . | . . . . Missiles Intercepted . | . . . . Alert | -11 -10 -10 -9 ------- Run | Scr Mat Min Mat Peak Influence 77 | 5 18 21 77 Average Influence 21 | 3 8 20 36 Maximum Alert Level . | . . . . Low Security (%) 100 | . . . . Level 1 . | . . . . Level 2 . | . . . . Level 3 . | . . . . Level 4 . | . . . . Level 5 . | . . . . High Security . | . . . . Max Security . | . . . . Squads Dispatched . | . . . . Investigation . | . . . . Extermination . | . . . . Reinforcement . | . . . . Assault . | . . . . Garrison . | . . . . Intercept . | . . . . Construction Impeded . | . . . . Haulers Reinforced . | . . . . Stealth | -11 -10 -10 -9 --------- Run | Scr Mat Min Mat Distress Signals 2 | . 1 . 1 Communications Jammed . | . . . . Distress Signals . | . . . . Times Spotted 16 | . 3 3 10 Peak Tracking Total 5 | . 3 3 5 Tactical Retreats 1 | . . 1 . Traps | -11 -10 -10 -9 ------- Run | Scr Mat Min Mat Traps Triggered . | . . . . Indirectly . | . . . . Trap Hack Attempts . | . . . . Triggered . | . . . . Disarmed . | . . . . Reprogrammed . | . . . . Reused . | . . . . Traps Extracted . | . . . . Installed . | . . . . Triggered . | . . . . Machines | -11 -10 -10 -9 ---------- Run | Scr Mat Min Mat Machines Disabled . | . . . . Max in Single Turn . | . . . . Machines Sabotaged . | . . . . Garrisons Compromised . | . . . . Overloaded Fab Kills . | . . . . Fab Network Shutdowns . | . . . . Hacking | -11 -10 -10 -9 --------- Run | Scr Mat Min Mat Machines Accessed . | . . . . Terminals . | . . . . Fabricators . | . . . . Repair Stations . | . . . . Recycling Units . | . . . . Scanalyzers . | . . . . Garrison Access . | . . . . Total Hacks . | . . . . Successful . | . . . . Failed . | . . . . Catastrophic . | . . . . Database Lockouts . | . . . . Manual . | . . . . Terminals . | . . . . Fabricators . | . . . . Repair Stations . | . . . . Recycling Units . | . . . . Scanalyzers . | . . . . Garrison Access . | . . . . Terminal Hacks . | . . . . Fabricator Hacks . | . . . . Repair Station Hacks . | . . . . Recycling Unit Hacks . | . . . . Scanalyzer . | . . . . Garrison Access Hacks . | . . . . Unauthorized Hacks . | . . . . Terminals . | . . . . Fabricators . | . . . . Repair Stations . | . . . . Recycling Units . | . . . . Scanalyzers . | . . . . Garrison Access . | . . . . Data Cores Recovered . | . . . . Used . | . . . . Hacking Detections . | . . . . Full Trace Events . | . . . . Feedback Events . | . . . . Feedback Blocked . | . . . . Robot Schematics Acquired . | . . . . Robots Built . | . . . . Matter . | . . . . Time . | . . . . Total Robot Build Rating . | . . . . Part Schematics Acquired . | . . . . Parts Built . | . . . . Matter . | . . . . Time . | . . . . Total Part Build Rating . | . . . . Parts Repaired . | . . . . Time . | . . . . Parts Recycled . | . . . . Recycled Matter . | . . . . Retrieved Matter . | . . . . Retrieved Components . | . . . . Parts Scanalyzed . | . . . . Part Schematics Acquired . | . . . . Parts Damaged . | . . . . Bothacking | -11 -10 -10 -9 ------------ Run | Scr Mat Min Mat Used RIF Installer . | . . . . Robots Hacked . | . . . . Non-combat . | . . . . Combat . | . . . . Robot Hacks Applied . | . . . . Relay Couplers Released . | . . . . Robots Rewired . | . . . . Allies Hacked . | . . . . Hacks Repelled . | . . . . Allies | -11 -10 -10 -9 -------- Run | Scr Mat Min Mat Total Allies . | . . . . Largest Group . | . . . . Highest-Rated Group . | . . . . Highest-Rated Ally . | . . . . Total Orders . | . . . . Ally Attacks . | . . . . Total Damage . | . . . . Kills . | . . . . Allies Corrupted . | . . . . Allies Melted . | . . . . Intel | -11 -10 -10 -9 ------- Run | Scr Mat Min Mat Robot Analysis Total . | . . . . Derelict Logs Recovered 1 | . . 1 . Drone Launches . | . . . . Drone Recoveries . | . . . . Exploration | -11 -10 -10 -9 ------------- Run | Scr Mat Min Mat Turns Passed 399 | 60 89 107 143 Spaces Moved 441 | 46 73 209 113 Core 325 | 15 . 207 103 Treads . | . . . . Legs 116 | 31 73 2 10 Wheels . | . . . . Hover . | . . . . Flight . | . . . . Fastest Speed 50 | 50 120 50 50 Average Speed 68 | 97 120 50 56 Slowest Speed 120 | 120 120 120 120 Overloaded Moves . | . . . . Propulsion Burnouts . | . . . . Robots Hopped . | . . . . Cave-ins Triggered . | . . . . Exploration Rate (%) 21 | 4 25 43 15 Regions Visited 3 Branch Regions 1 Pre-discovered Areas . | . . . . Known Exits Taken . | . . . . Unknown Exits Taken 3 | 1 1 1 . Scrap Searched 1 | . . 1 . Spaces Dug . | . . . . Terrain Destroyed . | . . . . Melee . | . . . . Projectile . | . . . . AOE . | . . . . Actions | -11 -10 -10 -9 --------- Run | Scr Mat Min Mat Total 488 | 54 74 209 151 Wait 2 | . . . 2 Move 438 | 45 72 208 113 Hop . | . . . . Pick Up 8 | 1 2 1 4 Fast Attach 5 | 4 . . 1 Attach 4 | . . . 4 Detach . | . . . . Swap . | . . . . Drop 4 | 1 . . 3 Fire 14 | 3 . . 11 Melee 13 | . . . 13 Ram . | . . . . Kick . | . . . . Crush . | . . . . Escape Stasis . | . . . . Rewire . | . . . . Trap . | . . . . Miscellaneous . | . . . . Route ------- -11/Scrapyard -10/Materials -10/Mines -9/Materials History --------- Turn | Location | Event 6 | -11/Scrapyard | Discovered new exit (range 16) 61 | -11/Scrapyard | Entered Materials 140 | -10/Materials | Discovered new exit (range 9) 150 | -10/Materials | Entered Mines 183 | -10/Mines | Learned 4 Materials zone layouts 246 | -10/Mines | Discovered new exit (range 6) 257 | -10/Mines | Entered Materials 257 | -9/Materials | Evolved 2 slots: Propulsion x2 300 | -9/Materials | Build established: Mutant 381 | -9/Materials | Core integrity fell below 50% 395 | -9/Materials | Core integrity fell below 20% 400 | -9/Materials | Self-destructed Last Messages --------------- 00308_ K-01 Serf collects debris. 00318_ Dropped Great Maul. 00318_ Acquired Grenade Launcher. 00327_ K-01 Serf collects debris. 00331_ G-34 Mercenary destroyed. 00331_ Switching to secondary target: G-34 Mercenary. 00332_ Acquired 44 matter. 00336_ K-01 Serf collects debris. 00351_ G-34 Mercenary destroyed. 00351_ Switching to secondary target: Y-45 Defender. 00352_ Acquired 12 matter. 00354_ Hpw. Tractor Beam destroyed. 00356_ Lgt. Assault Rifle destroyed. 00360_ Com. Matter Pod destroyed. 00360_ R-06 Scavenger collects Aluminum Leg. 00362_ Aluminum Leg destroyed. 00364_ Y-45 Defender destroyed. 00374_ Aluminum Leg destroyed. 00390_ C-30 ARC bursts open, deploying its payload. 00390_ S-10 Pest unfolds itself. Map ----- +----------------------------------------------------+ | ????????????????????????????????????????????????? | | ????????????????????????????????????????????????? | | ??????????????????????????????# + #"T # | | ??????????????????????????????# #"" #"" # | | ??????????????????????????????# #"" # # | | ????????????????????????####### #"T ######## | | ???????????????????????? # #"" #??????? | | ???????????????????????? + #"" #??????? | | ???????????????????????? # # #??????? | | ???????????????????????? + ########??????? | | ????????????????????????########+#####??????????? | | ???????????????????????????# #??????????? | | ???????????????????????????# #??????????? | | ???????????????????????????# #??????????? | | ???????????????????????????# #??????????? | | ???????????????????????????# #??????????? | | ???????????????????????????# #??????????? | | ???????????????????????????# #??????????? | | ???????????????????????????# #??????????? | | ???????????????????????#######+#######??????????? | | ???????????????????????# ## #????????????????? | | ???????????????????????# ## #????????????????? | | ???????????????######### ## #????????????????? | | ???????????????# # ## #????????????????? | | ???????????????# # ## #????????????????? | | ???????????????# """ #%@=s## #?????########???? | | ???????????????# """ #Y#+### ####### "T" #???? | | ???????????????# """ # %% #??????????? | | ???????????????# =+ #??????????? | | ???????????????# """ # +??????????? | | ???????????????# """ ##### #??????????? | | ???????????????#/ """ #???# #??????????? | | ???????????????# ##### #??????????? | | ???????????????# + #??????????? | | ???????????????################ #??????????? | | ??????????????????????????????# #??????????? | | ??????????????????????#######?# ##?????????? | | ??????????????????????# ### #?????????? | | ??????????????????????# #?????????? | | ??????????????????????# #?????????? | | ??????????????????????# #?????????? | | ??????????????????????#! ##### #?????????? | | ????????????????? ###### ##???? #?????????? | | ???????????????# ?# #?????! !#????????? | | ???????????????# !!?# #?????! !#????????? | | ???????????????# !!?# #?????#!!!!##????????? | | ???????????????# ## ##?????#####?????????? | | ???????????????# # #???????????????????? | | ???????????????# # #???????????????????? | | ???????????????# + #???????????????????? | +----------------------------------------------------+ Best States ------------- Heat Dissipation 28 Energy Generation 5 Energy Capacity 100 Matter Stores 450 Matter Capacity 450 Sight Range 16 Terrain Scan Density 10 Evasion (%) 50 Item Schematics ----------------- None Robot Schematics ------------------ None Fabricated ------------ Nothing Alien Tech Used ----------------- None Achievements -------------- None Challenges ------------ None Game ------ Seed WeldingSwordAutocannon Manual? 0 Play Time 00:05:32 Cumulative 112.6 hours Start 2019.11.05 @ 04:05:51 End 2019.11.05 @ 04:09:37 Sessions 1 Manual Loads 0 Difficulty Rogue Special Mode None Game No. 199 Rogue 199 Adventurer 0 Explorer 0 Win Type - Total 0 Types 0/0/0/0/0/0/0 Lore% 33 Gallery% 49 Achievement% 34 Wizard Run 0 Options --------- ASCII 0 Keyboard 0 Movement Mouse Keybinds 0 Fullscreen 1 Font 18/SmallcapsGlow Map View 76x50 Tactical HUD 1 Map Filters NONE Filters NONE Steam 1 RUN: b8e03fcd-ee2d-40e9-956c-a20463bd21c5